fUSD/lending_fUSD_20240619
["ID","MTS","AMOUNT","RATE_DAILY","PERIOD"]
[329881393,1718784634977,-500.0,0.00013698,2]
[329881394,1718784634987,-500.0,0.00013698,2]
[329881395,1718784634997,-500.0,0.00013698,2]
[329881396,1718784635009,-500.0,0.00013698,2]
[329881397,1718784635018,-741.72,0.00013698,2]
[329881398,1718784635028,-500.0,0.00013698,2]
[329881399,1718784635037,-500.0,0.00013698,2]
[329881400,1718784635047,-500.0,0.00013698,2]
[329881401,1718784635056,-527.05,0.00013698,2]
[329881402,1718784635065,-1103.97,0.00013698,2]
[329881403,1718784635075,-649.19,0.00013698,2]
[329881404,1718784635084,-500.0,0.00013698,2]
[329881405,1718784635094,-500.0,0.00013698,2]
[329881406,1718784635104,-500.0,0.00013698,2]
[329881407,1718784635113,-500.0,0.00013698,2]
[329881408,1718784635123,-500.0,0.00013698,2]
[329881409,1718784635133,-500.0,0.00013698,2]
[329881410,1718784635143,-500.0,0.00013698,2]
[329881411,1718784635152,-770.74,0.00013698,2]
[329881412,1718784635161,-500.0,0.00013698,2]
[329881413,1718784635170,-500.0,0.00013698,2]
[329881414,1718784635179,-500.0,0.00013698,2]
[329881415,1718784635188,-1027.26,0.00013698,2]
[329881416,1718784635197,-500.0,0.00013698,2]
[329881417,1718784635205,-500.0,0.00013698,2]
[329881418,1718784635214,-500.0,0.00013698,2]
[329881419,1718784635223,-500.0,0.00013698,2]
[329881420,1718784635232,-500.0,0.00013698,2]
[329881421,1718784635244,-557.44828197,0.00013698,2]
[329881422,1718784635253,-500.0,0.00013698,2]
[329881423,1718784635262,-500.0,0.00013698,2]
[329881424,1718784635271,-500.0,0.00013698,2]
[329881425,1718784635281,-583.75,0.00013698,2]
[329881426,1718784635293,-895.36,0.00013698,2]
[329881427,1718784635303,-993.43,0.00013698,2]
[329881428,1718784635313,-1000.0,0.00013698,5]
[329881429,1718784635323,-500.0,0.00013698,2]
[329881430,1718784635334,-771.25,0.00013698,2]
[329881431,1718784635344,-500.0,0.00013698,2]
[329881432,1718784635353,-500.0,0.00013698,2]
[329881433,1718784635362,-500.0,0.00013698,2]
[329881434,1718784635372,-1579.77,0.00013698,2]
[329881435,1718784635382,-500.0,0.00013698,2]
[329881436,1718784635391,-1046.48,0.00013698,2]
[329881437,1718784635401,-500.0,0.00013698,2]
[329881438,1718784635410,-1054.4,0.00013698,2]
[329881439,1718784635420,-747.28,0.00013698,2]
[329881440,1718784635430,-500.0,0.00013698,2]
[329881441,1718784635439,-500.0,0.00013698,2]
[329881442,1718784635448,-500.0,0.00013698,2]
[329881443,1718784635457,-500.0,0.00013698,2]
[329881444,1718784635468,-5000.0,0.00013698,2]
[329881445,1718784635477,-500.0,0.00013698,2]
[329881446,1718784635486,-500.0,0.00013698,2]
[329881447,1718784635498,-632.76,0.00013698,2]
[329881448,1718784635507,-500.0,0.00013698,2]
[329881449,1718784635517,-500.0,0.00013698,2]
[329881450,1718784635526,-1064.58,0.00013698,2]
[329881451,1718784635535,-802.15,0.00013698,2]
[329881452,1718784635544,-745.22,0.00013698,2]
[329881453,1718784635553,-560.2,0.00013698,2]
[329881454,1718784635562,-1388.87,0.00013698,2]
[329881455,1718784635571,-1254.54,0.00013698,2]
[329881456,1718784635580,-500.0,0.00013698,2]
[329881457,1718784635589,-955.0,0.00013698,2]
[329881458,1718784635598,-1069.73,0.00013698,2]
[329881459,1718784635608,-638.32,0.00013698,2]
[329881460,1718784635617,-1958.43,0.00013698,2]
[329881461,1718784635626,-500.0,0.00013698,2]
[329881462,1718784635636,-540.43,0.00013698,2]
[329881463,1718784635645,-1018.27,0.00013698,2]
[329881464,1718784635654,-500.0,0.00013698,2]
[329881465,1718784635663,-1270.64,0.00013698,2]
[329881466,1718784635673,-545.6,0.00013698,2]
[329881467,1718784635683,-500.0,0.00013698,2]
[329881468,1718784635691,-689.45,0.00013698,2]
[329881469,1718784635700,-500.0,0.00013698,2]
[329881470,1718784635710,-458.27224934,0.00013698,2]
[329881471,1718784635719,-2129.07,0.00013698,2]
[329881472,1718784635735,-500.0,0.00013698,2]
[329881473,1718784635746,-664.05,0.00013698,2]
[329881474,1718784635755,-765.45,0.00013698,2]
[329881475,1718784635764,-1371.34,0.00013698,2]
[329881476,1718784635775,-503.77,0.00013698,2]
[329881477,1718784635784,-500.0,0.00013698,2]
[329881478,1718784635795,-500.0,0.00013698,2]
[329881479,1718784635804,-500.0,0.00013698,2]
[329881480,1718784635815,-662.71,0.00013698,2]
[329881481,1718784635827,-2067.43,0.00013698,2]
[329881482,1718784635836,-2073.25,0.00013698,2]
[329881483,1718784635846,-500.0,0.00013698,2]
[329881484,1718784635855,-1453.57,0.00013698,2]
[329881485,1718784635864,-500.0,0.00013698,2]
[329881486,1718784635873,-500.0,0.00013698,2]
[329881487,1718784635882,-660.81,0.00013698,2]
[329881488,1718784635891,-502.699663,0.00013698,2]
[329881489,1718784635900,-1784.89,0.00013698,2]
[329881490,1718784635909,-500.0,0.00013698,2]
[329881491,1718784635918,-532.29,0.00013698,2]
[329881492,1718784635928,-500.0,0.00013698,2]
[329881493,1718784635938,-500.0,0.00013698,2]
[329881494,1718784635947,-537.11,0.00013698,2]
[329881495,1718784635958,-1761.49,0.00013698,2]
[329881496,1718784635967,-1688.31,0.00013698,2]
[329881497,1718784635976,-824.87,0.00013698,2]
[329881498,1718784635985,-1037.65,0.00013698,2]
[329881499,1718784635997,-500.0,0.00013698,2]
[329881500,1718784636005,-501.99,0.00013698,2]
[329881501,1718784636014,-894.97,0.00013698,2]
[329881502,1718784636023,-500.0,0.00013698,2]
[329881503,1718784636031,-507.84115175,0.00013698,2]
[329881504,1718784636041,-753.18,0.00013698,2]
[329881505,1718784636052,-1406.87,0.00013698,2]
[329881506,1718784636063,-1313.32,0.00013698,2]
[329881507,1718784636073,-524.74,0.00013698,2]
[329881508,1718784636083,-500.0,0.00013698,2]
[329881509,1718784636092,-822.76,0.00013698,2]
[329881510,1718784636101,-1547.87,0.00013698,2]
[329881511,1718784636110,-500.0,0.00013698,2]
[329881512,1718784636119,-643.24,0.00013698,2]
[329881513,1718784636128,-1269.28,0.00013698,2]
[329881514,1718784636137,-500.0,0.00013698,2]
[329881515,1718784636146,-509.9,0.00013698,2]
[329881516,1718784636155,-1152.82,0.00013698,2]
[329881517,1718784636164,-2332.55,0.00013698,2]
[329881518,1718784636174,-500.0,0.00013698,2]
[329881519,1718784636183,-500.0,0.00013698,2]
[329881520,1718784636192,-906.68,0.00013698,2]
[329881521,1718784636201,-669.8,0.00013698,2]
[329881522,1718784636210,-500.0,0.00013698,2]
[329881523,1718784636219,-1762.87,0.00013698,2]
[329881524,1718784636229,-500.0,0.00013698,2]
[329881525,1718784636240,-1708.54,0.00013698,2]
[329881526,1718784636249,-500.0,0.00013698,2]
[329881527,1718784636258,-500.0,0.00013698,2]
[329881528,1718784636267,-1303.17,0.00013698,2]
[329881529,1718784636276,-500.0,0.00013698,2]
[329881530,1718784636285,-500.0,0.00013698,2]
[329881531,1718784636295,-578.82,0.00013698,2]
[329881532,1718784636305,-1916.93,0.00013698,2]
[329881533,1718784636314,-970.97,0.00013698,2]
[329881534,1718784636324,-500.0,0.00013698,2]
[329881535,1718784636333,-2146.57,0.00013698,2]
[329881536,1718784636342,-500.0,0.00013698,2]
[329881537,1718784636351,-500.0,0.00013698,2]
[329881538,1718784636361,-500.0,0.00013698,2]
[329881539,1718784636370,-500.0,0.00013698,2]
[329881540,1718784636379,-500.0,0.00013698,2]
[329881541,1718784636389,-2123.69,0.00013698,2]
[329881542,1718784636398,-500.0,0.00013698,2]
[329881543,1718784636408,-500.0,0.00013698,2]
[329881544,1718784636417,-500.0,0.00013698,2]
[329881545,1718784636426,-500.0,0.00013698,2]
[329881546,1718784636435,-549.12425715,0.00013698,2]
[329881547,1718784636444,-500.0,0.00013698,2]
[329881548,1718784636453,-2037.75,0.00013698,2]
[329881549,1718784636463,-862.42,0.00013698,2]
[329881550,1718784636472,-1470.11,0.00013698,2]
[329881551,1718784636481,-509.45973988,0.00013698,2]
[329881552,1718784636492,-1094.65,0.00013698,2]
[329881553,1718784636501,-1316.08,0.00013698,2]
[329881554,1718784636510,-1064.89,0.00013698,2]
[329881555,1718784636519,-500.0,0.00013698,2]
[329881556,1718784636529,-500.0,0.00013698,2]
[329881557,1718784636538,-500.0,0.00013698,2]
[329881558,1718784636547,-1953.08,0.00013698,2]
[329881559,1718784636556,-500.0,0.00013698,2]
[329881560,1718784636565,-500.0,0.00013698,2]
[329881561,1718784636575,-1025.66,0.00013698,2]
[329881562,1718784636585,-500.0,0.00013698,2]
[329881563,1718784636595,-500.0,0.00013698,2]
[329881564,1718784636604,-500.0,0.00013698,2]
[329881565,1718784636613,-500.0,0.00013698,2]
[329881566,1718784636623,-500.0,0.00013698,2]
[329881567,1718784636632,-560.47,0.00013698,2]
[329881568,1718784636642,-1304.32,0.00013698,2]
[329881569,1718784636651,-912.93,0.00013698,2]
[329881570,1718784636660,-640.81,0.00013698,2]
[329881571,1718784636669,-551.31,0.00013698,2]
[329881572,1718784636678,-500.0,0.00013698,2]
[329881573,1718784636688,-1123.59,0.00013698,2]
[329881574,1718784636697,-698.82,0.00013698,2]
[329881575,1718784636707,-500.0,0.00013698,2]
[329881576,1718784636717,-1511.95,0.00013698,2]
[329881577,1718784636731,-724.34,0.00013698,2]
[329881578,1718784636742,-2036.62,0.00013698,2]
[329881579,1718784636751,-500.0,0.00013698,2]
[329881580,1718784636760,-1509.55,0.00013698,2]
[329881581,1718784636771,-662.14,0.00013698,2]
[329881582,1718784636780,-500.0,0.00013698,2]
[329881583,1718784636789,-500.0,0.00013698,2]
[329881584,1718784636799,-1230.35,0.00013698,2]
[329881585,1718784636809,-1572.41,0.00013698,2]
[329881586,1718784636821,-1571.64,0.00013698,2]
[329881587,1718784636832,-620.27607757,0.00013698,2]
[329881588,1718784636842,-962.23,0.00013698,2]
[329881589,1718784636851,-500.0,0.00013698,2]
[329881590,1718784636861,-500.0,0.00013698,2]
[329881591,1718784636872,-500.0,0.00013698,2]
[329881592,1718784636882,-1212.34,0.00013698,2]
[329881593,1718784636892,-2008.35,0.00013698,2]
[329881594,1718784636901,-1152.24,0.00013698,2]
[329881595,1718784636911,-500.0,0.00013698,2]
[329881596,1718784636921,-500.0,0.00013698,2]
[329881597,1718784636931,-1062.52,0.00013698,2]
[329881598,1718784636940,-500.0,0.00013698,2]
[329881599,1718784636950,-664.83,0.00013698,2]
[329881600,1718784636959,-594.75935028,0.00013698,2]
[329881601,1718784636969,-622.81,0.00013698,2]
[329881602,1718784636979,-500.0,0.00013698,2]
[329881603,1718784636989,-500.0,0.00013698,2]
[329881604,1718784636999,-280.85041706,0.00013698,2]
[329881605,1718784637010,-696.88,0.00013698,2]
[329881606,1718784637019,-500.0,0.00013698,2]
[329881607,1718784637029,-1368.57,0.00013698,2]
[329881608,1718784637039,-506.07,0.00013698,2]
[329881609,1718784637049,-1010.35,0.00013698,2]
[329881610,1718784637058,-760.18,0.00013698,2]
[329881611,1718784637068,-500.0,0.00013698,2]
[329881612,1718784637078,-500.0,0.00013698,2]
[329881613,1718784637088,-500.0,0.00013698,2]
[329881614,1718784637098,-551.61,0.00013698,2]
[329881615,1718784637107,-500.0,0.00013698,2]
[329881616,1718784637117,-1813.81,0.00013698,2]
[329881617,1718784637126,-953.3,0.00013698,2]
[329881618,1718784637136,-1040.46,0.00013698,2]
[329881619,1718784637146,-500.0,0.00013698,2]
[329881620,1718784637156,-1739.74,0.00013698,2]
[329881621,1718784637166,-500.0,0.00013698,2]
[329881622,1718784637176,-646.51,0.00013698,2]
[329881623,1718784637186,-500.0,0.00013698,2]
[329881624,1718784637196,-579.42,0.00013698,2]
[329881625,1718784637205,-500.0,0.00013698,2]
[329881626,1718784637215,-724.22,0.00013698,2]
[329881627,1718784637226,-2090.83,0.00013698,2]
[329881628,1718784637235,-500.0,0.00013698,2]
[329881629,1718784637247,-500.0,0.00013698,2]
[329881630,1718784637257,-1258.52,0.00013698,2]
[329881631,1718784637267,-1399.02,0.00013698,2]
[329881632,1718784637276,-500.0,0.00013698,2]
[329881633,1718784637286,-2547.44,0.00013698,2]
[329881634,1718784637296,-760.65,0.00013698,2]
[329881635,1718784637305,-500.0,0.00013698,2]
[329881636,1718784637315,-1947.93,0.00013698,2]
[329881637,1718784637325,-500.0,0.00013698,2]
[329881638,1718784637335,-500.0,0.00013698,2]
[329881639,1718784637345,-500.0,0.00013698,2]
[329881640,1718784637355,-1801.26,0.00013698,2]
[329881641,1718784637364,-1142.37,0.00013698,2]
[329881642,1718784637373,-1107.71,0.00013698,2]
[329881643,1718784637383,-500.0,0.00013698,2]
[329881644,1718784637393,-1427.41,0.00013698,2]
[329881645,1718784637403,-366.69879568,0.00013698,2]
[329881646,1718784637412,-812.43,0.00013698,2]
[329881647,1718784637422,-367.3567583,0.00013698,2]
[329881648,1718784637431,-529.67,0.00013698,2]
[329881649,1718784637441,-776.19,0.00013698,2]
[329881650,1718784637451,-1084.17,0.00013698,2]
[329881651,1718784637460,-500.0,0.00013698,2]
[329881652,1718784637469,-555.72,0.00013698,2]
[329881653,1718784637479,-500.0,0.00013698,2]
[329881654,1718784637491,-500.0,0.00013698,2]
[329881655,1718784637500,-1336.71,0.00013698,2]
[329881656,1718784637510,-1696.32,0.00013698,2]
[329881657,1718784637520,-500.0,0.00013698,2]
[329881658,1718784637530,-1150.01,0.00013698,2]
[329881659,1718784637539,-1311.13,0.00013698,2]
[329881660,1718784637549,-681.36,0.00013698,2]
[329881661,1718784637558,-500.0,0.00013698,2]
[329881662,1718784637567,-624.69,0.00013698,2]
[329881663,1718784637578,-1046.22,0.00013698,2]
[329881664,1718784637587,-1046.22,0.00013698,2]
[329881665,1718784637598,-1046.22,0.00013698,2]
[329881666,1718784637607,-1046.22,0.00013698,2]
[329881667,1718784637617,-1046.22,0.00013698,2]
[329881668,1718784637627,-732.95,0.00013698,2]
[329881669,1718784637636,-686.12,0.00013698,2]
[329881670,1718784637646,-500.0,0.00013698,2]
[329881671,1718784637655,-1046.22,0.00013698,2]
[329881672,1718784637665,-1118.98,0.00013698,2]
[329881673,1718784637674,-500.0,0.00013698,2]
[329881674,1718784637684,-1457.49,0.00013698,2]
[329881675,1718784637694,-1732.18,0.00013698,2]
[329881676,1718784637703,-500.0,0.00013698,2]
[329881677,1718784637712,-500.0,0.00013698,2]
[329881678,1718784637722,-2373.22,0.00013698,2]
[329881679,1718784637736,-500.0,0.00013698,2]
[329881680,1718784637748,-500.0,0.00013698,2]
[329881681,1718784637758,-500.0,0.00013698,2]
[329881682,1718784637767,-500.0,0.00013698,2]
[329881683,1718784637778,-1713.96,0.00013698,2]
[329881684,1718784637788,-500.0,0.00013698,2]
[329881685,1718784637798,-500.0,0.00013698,2]
[329881686,1718784637808,-1111.75,0.00013698,2]
[329881687,1718784637821,-773.15,0.00013698,2]
[329881688,1718784637830,-944.38,0.00013698,2]
[329881689,1718784637840,-500.0,0.00013698,2]
[329881690,1718784637850,-500.0,0.00013698,2]
[329881691,1718784637860,-802.89,0.00013698,2]
[329881692,1718784637870,-1297.65,0.00013698,2]
[329881693,1718784637880,-500.0,0.00013698,2]
[329881694,1718784637889,-1137.32,0.00013698,2]
[329881697,1718784638133,-500.0,0.00013698,2]
[329881699,1718784638143,-500.0,0.00013698,2]
[329881701,1718784638153,-739.69,0.00013698,2]
[329881702,1718784638163,-500.0,0.00013698,2]
[329881703,1718784638173,-500.0,0.00013698,2]
[329881704,1718784638182,-795.16,0.00013698,2]
[329881705,1718784638192,-1704.52,0.00013698,2]
[329881707,1718784638202,-1421.37,0.00013698,2]
[329881709,1718784638212,-1751.18,0.00013698,2]
[329881711,1718784638222,-592.46,0.00013698,2]
[329881713,1718784638232,-500.0,0.00013698,2]
[329881715,1718784638244,-967.89,0.00013698,2]
[329881717,1718784638254,-500.0,0.00013698,2]
[329881720,1718784638264,-500.0,0.00013698,2]
[329881722,1718784638274,-500.0,0.00013698,2]
[329881724,1718784638285,-1328.6,0.00013698,2]
[329881726,1718784638295,-500.0,0.00013698,2]
[329881728,1718784638306,-562.75,0.00013698,2]
[329881730,1718784638317,-500.0,0.00013698,2]
[329881732,1718784638327,-500.0,0.00013698,2]
[329881734,1718784638337,-500.0,0.00013698,2]
[329881736,1718784638347,-500.0,0.00013698,2]
[329881738,1718784638359,-500.0,0.00013698,2]
[329881740,1718784638370,-1318.25,0.00013698,2]
[329881742,1718784638380,-500.0,0.00013698,2]
[329881744,1718784638391,-500.0,0.00013698,2]
[329881745,1718784638402,-500.0,0.00013698,2]
[329881746,1718784638412,-500.0,0.00013698,2]
[329881747,1718784638422,-1113.17,0.00013698,2]
[329881748,1718784638432,-1203.08,0.00013698,2]
[329881749,1718784638443,-500.0,0.00013698,2]
[329881750,1718784638453,-500.0,0.00013698,2]
[329881751,1718784638466,-620.75,0.00013698,2]
[329881752,1718784638476,-500.0,0.00013698,2]
[329881753,1718784638486,-1815.05,0.00013698,2]
[329881754,1718784638499,-661.7,0.00013698,2]
[329881755,1718784638509,-735.45,0.00013698,2]
[329881756,1718784638519,-719.15,0.00013698,2]
[329881757,1718784638529,-500.0,0.00013698,2]
[329881758,1718784638538,-617.92,0.00013698,2]
[329881759,1718784638548,-1456.87,0.00013698,2]
[329881760,1718784638559,-500.0,0.00013698,2]
[329881761,1718784638569,-500.0,0.00013698,2]
[329881762,1718784638579,-500.0,0.00013698,2]
[329881763,1718784638591,-718.83,0.00013698,2]
[329881764,1718784638601,-2219.44,0.00013698,2]
[329881765,1718784638610,-4055.6,0.00013698,2]
[329881766,1718784638621,-1261.76,0.00013698,2]
[329881767,1718784638631,-2632.75,0.00013698,2]
[329881768,1718784638641,-500.0,0.00013698,2]
[329881770,1718784638651,-1246.61,0.00013698,2]
[329881772,1718784638660,-500.0,0.00013698,2]
[329881773,1718784638670,-803.77,0.00013698,2]
[329881774,1718784638680,-1315.1,0.00013698,2]
[329881775,1718784638690,-1025.05,0.00013698,2]
[329881776,1718784638700,-500.0,0.00013698,2]
[329881777,1718784638709,-500.0,0.00013698,2]
[329881778,1718784638719,-500.0,0.00013698,2]
[329881779,1718784638730,-1793.88,0.00013698,2]
[329881780,1718784638742,-2278.09,0.00013698,2]
[329881781,1718784638752,-1178.16,0.00013698,2]
[329881782,1718784638762,-860.41,0.00013698,2]
[329881783,1718784638772,-500.0,0.00013698,2]
[329881784,1718784638784,-5205.11,0.00013698,2]
[329881785,1718784638794,-500.0,0.00013698,2]
[329881787,1718784638804,-500.0,0.00013698,2]
[329881789,1718784638813,-7330.71,0.00013698,2]
[329881791,1718784638824,-804.42,0.00013698,2]
[329881793,1718784638834,-952.54,0.00013698,2]
[329881795,1718784638843,-500.0,0.00013698,2]
[329881797,1718784638853,-4045.43,0.00013698,2]
[329881799,1718784638863,-500.0,0.00013698,2]
[329881801,1718784638873,-1119.19,0.00013698,2]
[329881803,1718784638882,-1718.53,0.00013698,2]
[329881804,1718784638891,-281.40412805,0.00013698,2]
[329881805,1718784638901,-500.0,0.00013698,2]
[329881806,1718784638911,-1031.98,0.00013698,2]
[329881807,1718784638921,-500.0,0.00013698,2]
[329881808,1718784638932,-500.0,0.00013698,2]
[329881809,1718784638942,-29419.07,0.00013698,2]
[329881810,1718784638951,-500.0,0.00013698,2]
[329881811,1718784638961,-1231.97,0.00013698,2]
[329881812,1718784638971,-500.0,0.00013698,2]
[329881813,1718784638982,-4832.02,0.00013698,2]
[329881814,1718784638993,-500.0,0.00013698,2]
[329881815,1718784639002,-1717.37,0.00013698,2]
[329881816,1718784639012,-1401.39,0.00013698,2]
[329881817,1718784639022,-1463.19,0.00013698,2]
[329881818,1718784639031,-500.0,0.00013698,2]
[329881819,1718784639041,-909.71,0.00013698,2]
[329881820,1718784639051,-13629.07,0.00013698,2]
[329881821,1718784639060,-1139.31,0.00013698,2]
[329881822,1718784639070,-720.32767245,0.00013698,2]
[329881823,1718784639717,-569.85232755,0.00013698,2]
[329881824,1718784639730,-482.74814853,0.00013698,2]
[329881825,1718784639744,-17.25185147,0.00013698,2]
[329881826,1718784639754,-398.24220797,0.00013698,2]
[329881827,1718784639785,-2209.25495473,0.00013698,2]
[329881828,1718784639797,-462.7428373,0.00013698,2]
[329881829,1718784639809,-1059.01937491,0.00013698,2]
[329881830,1718784639880,-298.83062509,0.00013698,2]
[329881831,1718784639889,-1361.96813098,0.00013698,2]
[329881852,1718784641365,-1067.0,0.0001344,2]
[329881853,1718784641375,-209.23301289,0.00013697,2]
[329881854,1718784641385,-358.33441276,0.00013697,2]
[329881855,1718784641396,-321.65484546,0.00013697,2]
[329881856,1718784641865,-1748.74594641,0.00013697,2]
[329881857,1718784641875,-828.58186902,0.00013698,2]
[329881858,1718784641885,-439.98237639,0.00013698,2]
[329881859,1718784641921,-60.01762361,0.00013698,2]
[329881860,1718784641931,-1052.46537639,0.00013698,2]
[329881880,1718784646415,-1000.0,0.00013696,2]
[329881881,1718784646426,-675.69422699,0.00013698,2]
[329881882,1718784646587,-261.870524,0.00013698,2]
[329881883,1718784646648,-627.08987262,0.00013698,2]
[329881884,1718784646658,-500.0,0.00013698,2]
[329881885,1718784646668,-1231.51,0.00013698,2]
[329881886,1718784646678,-500.0,0.00013698,2]
[329881887,1718784646688,-500.0,0.00013698,2]
[329881888,1718784646698,-500.0,0.00013698,2]
[329881889,1718784646708,-2396.35,0.00013698,2]
[329881890,1718784646717,-145.30241231,0.00013698,2]
[329881891,1718784646730,-1936.70758769,0.00013698,2]
[329881892,1718784646743,-500.0,0.00013698,2]
[329881893,1718784646754,-720.98,0.00013698,2]
[329881894,1718784646763,-500.0,0.00013698,2]
[329881895,1718784646774,-1541.96,0.00013698,2]
[329881896,1718784646784,-1304.91493452,0.00013698,2]
[329881901,1718784646845,-2390.04506548,0.00013698,2]
[329881902,1718784646855,-1980.19,0.00013698,2]
[329881903,1718784646865,-1224.93,0.00013698,2]
[329881904,1718784646875,-597.33,0.00013698,2]
[329881905,1718784646885,-2285.55,0.00013698,2]
[329881906,1718784646895,-20014.91,0.00013698,2]
[329881907,1718784646904,-858.88,0.00013698,2]
[329881908,1718784646915,-500.0,0.00013698,2]
[329881909,1718784646924,-505.43,0.00013698,2]
[329881910,1718784646934,-647.08,0.00013698,2]
[329881911,1718784646943,-500.0,0.00013698,2]
[329881912,1718784646953,-500.0,0.00013698,2]
[329881913,1718784646962,-500.0,0.00013698,2]
[329881914,1718784646972,-1461.35,0.00013698,2]
[329881915,1718784646981,-35004.18680168,0.00013698,2]
[329881916,1718784646993,-1749.91574108,0.00013698,2]
[329881917,1718784705005,754392.02144518,0.000111,2]
[329881918,1718785117922,671.07,0.00010694,2]
[329881919,1718785197997,9801.0,0.00026,90]
[329881924,1718785256309,157.061917,0.00025,64]
[329881925,1718785278065,157.061917,0.00026,90]
[329881927,1718785292339,157.061917,0.00026,91]
[329881941,1718785736005,742.18,0.00010445,2]
[329881961,1718785832373,-155.0,0.00011349,2]
[329881962,1718785832383,-681.74867698,0.00011349,2]
[329881963,1718785832616,-318.25132302,0.00011349,2]
[329881964,1718785832626,-158.59770655,0.0001135,2]
[329881965,1718785832635,-149.67086484,0.00011351,2]
[329881966,1718785832663,-435.0,0.00011351,2]
[329881967,1718785832674,-600.0,0.00011351,2]
[329881968,1718785832686,-19.49261532,0.00011351,2]
[329881969,1718785832695,-158.77002781,0.00011352,2]
[329881970,1718785832705,-2327.76387157,0.00011354,2]
[329881972,1718785832715,-181.96068548,0.00011355,2]
[329881973,1718785832727,-2145.80318609,0.00011355,2]
[329881974,1718785832737,-2327.76387157,0.00011355,2]
[329881975,1718785832747,-267.73995674,0.00011457,2]
[329881976,1718785832757,-412.41431636,0.00012072,2]
[329881977,1718785832766,-158.06324404,0.00012073,2]
[329881978,1718785832776,-577.0983671,0.00012189,2]
[329881979,1718785832787,-258.77,0.00012245,2]
[329881980,1718785832797,-187.17,0.00012352,2]
[329881982,1718785832807,-918.71,0.00012368,2]
[329881984,1718785832816,-1000.0,0.00012377,2]
[329881986,1718785832826,-250.0,0.00012412,2]
[329881988,1718785832836,-499.99,0.00012412,2]
[329881989,1718785832848,-462.51,0.00012412,2]
[329881990,1718785832857,-250.0,0.00012637,2]
[329881991,1718785832867,-742.18,0.00012709,2]
[329881992,1718785832876,-176.46,0.00012733,2]
[329881993,1718785832885,-7362.2,0.00013286,2]
[329881994,1718785832894,-2109.23067161,0.00013296,2]
[329881995,1718785832915,-28404.04952839,0.00013296,2]
[329881996,1718785832925,-8474.9889,0.00013296,2]
[329881997,1718785832934,-500.0,0.00013296,2]
[329881998,1718785832944,-1948.6667,0.00013296,2]
[329881999,1718785832953,-7568.59,0.00013306,2]
[329882000,1718785832963,-1023.64962857,0.00013424,2]
[329882001,1718785832972,-500.0,0.00013588,2]
[329882002,1718785832982,-175.39668906,0.00013598,2]
[329882003,1718785832991,-177.9294397,0.00013598,2]
[329882004,1718785833000,-4206.1197078,0.00013598,2]
[329882005,1718785833010,-1528.47049274,0.00013598,2]
[329882006,1718785833019,-3396.2379534,0.00013687,2]
[329882007,1718785833029,-9624.39376032,0.00013687,2]
[329882008,1718785833041,-271.2999999,0.00013687,2]
[329882009,1718785833059,-4255.0,0.00013687,2]
[329882010,1718785833071,-315.04,0.00013687,2]
[329882011,1718785833082,-728.92117432,0.00013687,2]
[329882012,1718785833130,-205.21041243,0.00011349,2]